Cogmind - Beta 16 @@@ ROGUE MODE // 2026.02.02 @ 22:40:53 Player: Guo Ning Result: Destroyed by D-53 Grenadier with Mini Grenade Launcher Performance ------------- Evolutions (1) 500 Regions Visited (4) 800 Robots Destroyed (44) 220 Value Destroyed (1159) 1159 Prototype IDs (0) 0 Alien Tech Used (0) 0 Bonus (14) 14 TOTAL SCORE: 2693 Bonus ------- Follower Combat Kills 14 Cogmind --------- Core Integrity 0/400 Matter 285/300 Energy 100/100 System Corruption 0% Temperature Cool (0) Movement Treading (160) Location -9/Mines Parts ------- > --- POWER (1) -------- (None) > --- PROPULSION (2) --- Light Treads > --- UTILITY (3) ------ Large Storage Unit Hacking Suite > --- WEAPON (3) ------- (None) > --- INVENTORY (15) --- Improved Ion Engine Light Nuclear Core Light Treads Light Treads Light Treads Improved Heat Sink Medium Matter Pod (100) Structural Scanner Light Armor Plating Beam Rifle Datajack Makeshift Axe Peak State ------------ > --- POWER ------------ Improved Ion Engine > --- PROPULSION ------- Light Treads Light Treads > --- UTILITY ---------- Large Storage Unit Weapon Shielding Hacking Suite > --- WEAPON ----------- Particle Gun Light EM Pulse Cannon Heavy Assault Rifle > --- INVENTORY -------- Ion Engine Light Nuclear Core Light Treads Light Treads Light Treads Light Treads Light Treads Light Treads Medium Matter Pod Weapon Shielding Assault Rifle Light Assault Rifle Light Assault Rifle Datajack Makeshift Axe [Rating: 17] Favorites ----------- Power Improved Ion Engine Engine Improved Ion Engine Propulsion Light Treads Treads Light Treads Leg Aluminum Leg Utility Large Storage Unit Device Terrain Scanner Storage Large Storage Unit Hackware Hacking Suite Protection Weapon Shielding Weapon Heavy Assault Rifle Energy Gun Particle Gun Energy Cannon Light EM Pulse Cannon Ballistic Gun Heavy Assault Rifle Launcher Rocket Launcher Build | -11 -10 -10 -9 -9 ------- Run | Yrd Mat Min Mat Min Slots Evolved 2 | . . . 2 . Power . | . . . . . Propulsion . | . . . . . Utility 1 | . . . 1 . Weapon 1 | . . . 1 . Parts Attached 29 | 6 4 3 13 3 Power 4 | 1 . 1 1 1 Engine 4 | 1 . 1 1 1 Core . | . . . . . Reactor . | . . . . . Propulsion 8 | 2 2 . 3 1 Treads 6 | . 2 . 3 1 Leg 2 | 2 . . . . Wheel . | . . . . . Hover . | . . . . . Flight . | . . . . . Utility 8 | 1 2 1 4 . Device 2 | . . 1 1 . Storage 2 | 1 1 . . . Processor . | . . . . . Hackware 1 | . . . 1 . Protection 3 | . 1 . 2 . Artifact . | . . . . . Weapon 9 | 2 . 1 5 1 Energy Gun 2 | 1 . 1 . . Energy Cannon 1 | . . . 1 . Ballistic Gun 5 | 1 . . 4 . Ballistic Cannon . | . . . . . Launcher 1 | . . . . 1 Special Weapon . | . . . . . Impact Weapon . | . . . . . Slashing Weapon . | . . . . . Piercing Weapon . | . . . . . Special Melee Weapon . | . . . . . Unidentified Prototypes . | . . . . . Parts Lost 17 | . . 1 7 9 Power 3 | . . 1 . 2 Propulsion 5 | . . . 3 2 Utility 3 | . . . 2 1 Weapon 6 | . . . 2 4 Highest Loss Streak 7 | . . 1 3 7 To Critical Strikes . | . . . . . Average Backups 13 | 2 10 14 14 14 Power 2 | . 1 2 2 2 Propulsion 4 | 1 5 6 4 3 Utility 2 | . 1 3 2 4 Weapon 2 | . 1 1 3 2 Tool/Special . | . . . . . Unused Backups 18 | . . 2 4 12 Power 5 | . . 1 2 2 Propulsion 3 | . . . . 3 Utility 4 | . . . . 4 Weapon 5 | . . 1 2 2 Tool/Special 1 | . . . . 1 Average Slot Usage (%) 98 | . 96 99 99 98 Engine 12 | . 14 13 11 10 Treads 23 | . 22 28 21 21 Leg 1 | . 5 . . . Storage 12 | . 14 14 11 11 Hackware 6 | . . . 11 11 Protection 11 | . 11 14 10 10 Energy Gun 9 | . 14 14 10 . Energy Cannon 4 | . . . 6 10 Ballistic Gun 16 | . 14 14 16 19 Peak Build Rating 17 | 6 8 10 17 16 Average Rating 12 | 4 7 9 16 15 On Entrance 8 | . 6 8 10 16 Avg Prop Armor Cover (%) . | . . . . . Naked Turns . | . . . . . Heaviest Build 38 | 13 29 31 38 37 Greatest Support 40 | 20 40 40 40 40 Greatest Overweight (x) 1 | 1 . . 1 1 Average Overweight (x) . | . . . . . Largest Inventory Capacity 15 | 8 15 15 15 15 Average Capacity 14 | 6 13 15 15 15 Most Carried 15 | 4 15 15 15 15 Average Carried 13 | 2 10 14 14 14 Final Capacity 15 | 8 15 15 15 15 Final Carried 15 | 4 15 15 15 12 Class Distribution -------------------- 48% | Scavenger-Tank 43% | Mutant 7% | Tank Dominant Class ---------------- Mutant | -10/Materials Mutant | -10/Mines Scavenger-Tank | -9/Materials Scavenger-Tank | -9/Mines Resources | -11 -10 -10 -9 -9 ----------- Run | Yrd Mat Min Mat Min Matter Collected 1047 | 197 175 171 381 123 Remotely . | . . . . . Salvage Created 1494 | . 258 192 867 177 Parts 116 | . 22 14 67 13 Haulers Intercepted 1 | . 1 . . . Recyclers Shooed . | . . . . . Parts Field Recycled . | . . . . . Retrieved Matter . | . . . . . Parts Self-Destructed . | . . . . . Prevented . | . . . . . Parts Restored . | . . . . . Kills | -11 -10 -10 -9 -9 ------- Run | Yrd Mat Min Mat Min Combat Hostiles Destroyed 42 | . 4 5 18 15 Guns 24 | . 4 5 13 2 Cannons 7 | . . . 5 2 AOE 11 | . . . . 11 Classes Destroyed 10 | . 4 1 4 1 Worker 3 | . . . 3 . Hauler 1 | . 1 . . . Recycler 1 | . . . 1 . Operator 1 | . 1 . . . Watcher 5 | . 2 . 3 . Swarmer 8 | . . 1 4 3 Grunt 20 | . 4 4 9 3 Duelist 1 | . . . 1 . Sentry 4 | . . . 4 . Assembled 9 | . . . . 9 Best Kill Streak 14 | . 2 2 14 8 Combat Bots Only 8 | . 2 2 8 8 Max Kills in Single Turn 2 | . 1 1 2 2 Gunslinging 1 | . . . 1 . Exploded 2 | . . . . 2 Melee . | . . . . . Uniques/NPCs Destroyed . | . . . . . Combat | -11 -10 -10 -9 -9 -------- Run | Yrd Mat Min Mat Min Hostile Shots Fired 192 | . 30 23 89 50 Missed 47 | . 11 7 16 13 Hits 145 | . 19 16 73 37 Projectile 145 | . 19 16 73 37 AOE 17 | . . . . 17 Critical Strikes 1 | . . 1 . . Damage Taken 2271 | . 211 193 891 976 Core 474 | . 35 16 162 261 Absorbed by Shields . | . . . . . Redirected to Shielding 140 | . 12 8 75 45 Core Remaining (%) 89 | 100 . 79 . . Volleys Fired 103 | . 24 12 45 22 Largest 3 | . 2 2 3 3 Hottest 144 | . 60 85 144 99 Shots Fired 234 | . 48 24 120 42 Gun 197 | . 48 24 105 20 Cannon 28 | . . . 15 13 Launcher 9 | . . . . 9 Special . | . . . . . Kinetic 133 | . 24 12 77 20 Thermal 64 | . 24 12 28 . Explosive 9 | . . . . 9 Electromagnetic 28 | . . . 15 13 Robot Hit Streak 12 | . 6 5 12 4 Robot Miss Streak 4 | . 4 4 3 3 Penetration Max . | . . . . . Secondary Targets 4 | . . 2 2 . Max Gunslinging Chain 1 | . . 1 1 . Shots Hit Robots 140 | . 28 14 76 22 Core Hits 92 | . 16 10 34 32 Critical Kills . | . . . . . Critical Parts Destroyed . | . . . . . Critical Strikes 2 | . . . 2 . Burn 1 | . . . 1 . Corrupt 1 | . . . 1 . Melee Attacks . | . . . . . Impact . | . . . . . Slashing . | . . . . . Piercing . | . . . . . Sneak Attacks . | . . . . . Combat Hostiles . | . . . . . Follow-up Attacks . | . . . . . Damage Inflicted 2893 | . 333 212 1282 1066 Guns 1692 | . 333 212 1024 123 Cannons 369 | . . . 258 111 Explosions 832 | . . . . 832 Melee . | . . . . . Ramming . | . . . . . Kinetic 1121 | . 166 98 734 123 Thermal 571 | . 167 114 290 . Explosive 832 | . . . . 832 Electromagnetic 369 | . . . 258 111 Impact . | . . . . . Slashing . | . . . . . Piercing . | . . . . . Highest Corruption . | . . . . . Average Corruption . | . . . . . Corruption Purged . | . . . . . Corruption Blocked . | . . . . . Overload Shots . | . . . . . Overflow Damage 28 | . . . . 28 Projectiles . | . . . . . Explosions 28 | . . . . 28 Melee . | . . . . . Knockbacks . | . . . . . Impact . | . . . . . Kinetic . | . . . . . Secondary . | . . . . . Self-Inflicted Damage 9 | . . . . 9 Shots 1 | . . . . 1 Rammed . | . . . . . Targets Rammed . | . . . . . Kicked . | . . . . . Crushed . | . . . . . Highest Temperature 382 | . 36 93 382 111 Average Temperature 96 | . 17 36 133 39 Received Heat Transfer 561 | . 114 120 309 18 Effects 3 | . . . 3 . Shutdowns 1 | . . . 1 . Energy Bleed 1 | . . . 1 . Matter Decay 1 | . . . 1 . Siege Activations . | . . . . . Martial Activations . | . . . . . Shielding Activations . | . . . . . Robots Disrupted . | . . . . . Combat Hostiles . | . . . . . Robots Corrupted . | . . . . . Combat Hostiles . | . . . . . Parts Fried 1 | . . . 1 . Impact Corruptions . | . . . . . Robots Melted . | . . . . . Combat Hostiles . | . . . . . Parts Melted 3 | . . . 3 . Heat Transferred 1413 | . 375 261 777 . Parts Sabotaged . | . . . . . Parts Stolen . | . . . . . Parts Stripped . | . . . . . Power Chain Reactions . | . . . . . Alert | -11 -10 -10 -9 -9 ------- Run | Yrd Mat Min Mat Min Maximum Alert Level 1 | . . . 1 . Low Security (%) 85 | 100 100 100 55 100 Level 1 14 | . . . 44 . Level 2 . | . . . . . Level 3 . | . . . . . Level 4 . | . . . . . Level 5 . | . . . . . High Security . | . . . . . Max Security . | . . . . . Peak Influence 267 | . 52 64 267 145 Initial 87 | . . . 21 87 Average 60 | . 14 15 123 62 Influence Increases 1078 | . 174 174 551 179 Destroy 0b10 Robot/C 700 | . 80 140 360 120 Destroy 0b10 Robot/NC 55 | . 20 . 35 . Destroy Leader 172 | . 26 30 106 10 Allied During Kill 4 | . . 4 . . Successful Hack 21 | . 17 . 4 . Destroy Structure 36 | . 1 . 1 34 Lose Combat Pursuer 90 | . 30 . 45 15 Influence Decreases 1078 | . 172 120 381 405 Entered New Map 176 | . . 2 35 139 Time Decay 821 | . 172 118 286 245 Lost Part 81 | . . . 60 21 Squads Dispatched 4 | . 2 . 2 . Investigation 3 | . 2 . 1 . Extermination . | . . . . . Reinforcement 1 | . . . 1 . Assault . | . . . . . Garrison . | . . . . . Intercept . | . . . . . Searches Triggered . | . . . . . Construction Impeded . | . . . . . Haulers Reinforced . | . . . . . Active Scanning Responses . | . . . . . Cargo Convoy Interrupts . | . . . . . Stealth | -11 -10 -10 -9 -9 --------- Run | Yrd Mat Min Mat Min Distress Signals 6 | . 1 . 4 1 Communications Jammed . | . . . . . Distress Signals . | . . . . . Times Spotted 69 | . 14 7 27 21 Peak Tracking Total 11 | . 3 2 11 11 Tactical Retreats 6 | . 2 . 2 2 Traps | -11 -10 -10 -9 -9 ------- Run | Yrd Mat Min Mat Min Traps Triggered . | . . . . . Indirectly . | . . . . . Trap Hack Attempts . | . . . . . Triggered . | . . . . . Disarmed . | . . . . . Reprogrammed . | . . . . . Reused . | . . . . . Traps Extracted . | . . . . . Installed . | . . . . . Triggered . | . . . . . Machines | -11 -10 -10 -9 -9 ---------- Run | Yrd Mat Min Mat Min Machines Disabled . | . . . . . Max in Single Turn . | . . . . . Machines Repaired . | . . . . . Machines Dismantled . | . . . . . Machines Sabotaged . | . . . . . Overloaded Fab Kills . | . . . . . Hacking | -11 -10 -10 -9 -9 --------- Run | Yrd Mat Min Mat Min Machines Accessed 8 | . 6 . 2 . Terminals 8 | . 6 . 2 . Fabricators . | . . . . . Repair Stations . | . . . . . Recycling Units . | . . . . . Scanalyzers . | . . . . . Garrison Access . | . . . . . Total Hacks 23 | . 18 . 5 . Successful 10 | . 7 . 3 . Failed 13 | . 11 . 2 . Catastrophic 5 | . 3 . 2 . Database Lockouts . | . . . . . Manual 16 | . 13 . 3 . Terminals 23 | . 18 . 5 . Fabricators . | . . . . . Repair Stations . | . . . . . Recycling Units . | . . . . . Scanalyzers . | . . . . . Garrison Access . | . . . . . Terminal Hacks 4 | . 3 . 1 . Branch Access Points 2 | . 1 . 1 . Unreport Threat 1 | . 1 . . . Locate Traps 1 | . 1 . . . Fabricator Hacks . | . . . . . Repair Station Hacks . | . . . . . Recycling Unit Hacks . | . . . . . Scanalyzer . | . . . . . Garrison Access Hacks . | . . . . . Unauthorized Hacks 6 | . 4 . 2 . Terminals 6 | . 4 . 2 . Botnet 5 | . 3 . 2 . Operators 1 | . 1 . . . Fabricators . | . . . . . Repair Stations . | . . . . . Recycling Units . | . . . . . Scanalyzers . | . . . . . Garrison Access . | . . . . . Data Cores Recovered . | . . . . . Used . | . . . . . Hacking Detections 7 | . 5 . 2 . Full Trace Events 4 | . 3 . 1 . Feedback Events . | . . . . . Feedback Blocked . | . . . . . Robot Schematics Acquired . | . . . . . Robots Built . | . . . . . Authchips . | . . . . . Time . | . . . . . Total Robot Build Rating . | . . . . . Part Schematics Acquired . | . . . . . Parts Built . | . . . . . Authchips . | . . . . . Time . | . . . . . Total Part Build Rating . | . . . . . Part Studies Acquired . | . . . . . Parts Repaired . | . . . . . Time . | . . . . . Parts Recycled . | . . . . . Recycled Matter . | . . . . . Retrieved Matter . | . . . . . Retrieved Components . | . . . . . Parts Scanalyzed . | . . . . . Part Schematics Acquired . | . . . . . Parts Damaged . | . . . . . Bothacking | -11 -10 -10 -9 -9 ------------ Run | Yrd Mat Min Mat Min Used RIF Installer . | . . . . . Robots Hacked . | . . . . . Non-combat . | . . . . . Combat . | . . . . . Robot Hacks Applied . | . . . . . Relay Couplers Released . | . . . . . Fabnet Peak Effective % . | . . . . . Robots Rewired . | . . . . . Allies Hacked . | . . . . . Hacks Repelled . | . . . . . Allies | -11 -10 -10 -9 -9 -------- Run | Yrd Mat Min Mat Min Total Allies 1 | . . 1 . . Largest Group 1 | . . 1 1 . Highest-Rated Group 31 | . . 31 31 . Highest-Rated Ally 31 | . . 31 31 . Total Orders . | . . . . . Ally Attacks 7 | . . 7 . . Total Damage 65 | . . 65 . . Kills 2 | . . 2 . . Allies Corrupted . | . . . . . Allies Melted . | . . . . . Intel | -11 -10 -10 -9 -9 ------- Run | Yrd Mat Min Mat Min Active Infowar (turns) 6 | . . 3 3 . Terrain 3 | . . . 3 . Seismic 3 | . . 3 . . Robot Analysis Total . | . . . . . Derelict Logs Recovered 1 | . . 1 . . Drone Launches . | . . . . . Drone Recoveries . | . . . . . Exploration | -11 -10 -10 -9 -9 ------------- Run | Yrd Mat Min Mat Min Turns Passed 2389 | 58 563 414 755 599 Spaces Moved 1214 | 40 311 220 327 316 Core 5 | 5 . . . . Treads 1097 | . 234 220 327 316 Legs 112 | 35 77 . . . Wheels . | . . . . . Hover . | . . . . . Flight . | . . . . . Fastest Speed 50 | 50 120 160 160 160 Average Speed 156 | 113 150 160 160 160 Slowest Speed 240 | 120 160 160 240 240 Overloaded Moves . | . . . . . Propulsion Burnouts . | . . . . . Robots Hopped . | . . . . . Potential Cave-ins . | . . . . . Cave-ins Triggered . | . . . . . Exploration Rate (%) 47 | 4 67 67 29 69 Regions Visited 4 Branch Regions 2 Pre-discovered Areas 1 | . . . . 1 Known Exits Taken 2 | . 1 . 1 . Unknown Exits Taken 2 | 1 . 1 . . Scrap Searched 2 | . . 2 . . Spaces Dug . | . . . . . Terrain Destroyed 73 | . . . . 73 Melee . | . . . . . Projectile . | . . . . . AOE 73 | . . . . 73 Terrain Rammed . | . . . . . Walls Destroyed . | . . . . . Machines Disabled . | . . . . . Actions | -11 -10 -10 -9 -9 --------- Run | Yrd Mat Min Mat Min Total 1506 | 49 358 261 465 373 Wait 103 | . 7 12 54 30 Move 1210 | 39 310 219 326 316 Hop . | . . . . . Pick Up 34 | 4 11 6 13 . Fast Attach 17 | 6 2 3 6 . Attach 13 | . . 1 9 3 Detach 3 | . 1 . 2 . Swap 4 | . 2 . . 2 Drop 19 | . 1 8 10 . Fire 103 | . 24 12 45 22 Melee . | . . . . . Ram . | . . . . . Kick . | . . . . . Crush . | . . . . . Escape Stasis . | . . . . . Rewire . | . . . . . Trap . | . . . . . Miscellaneous . | . . . . . Route ------- -11/Scrapyard -10/Materials (discovered 2 exits: *Mat / *Min) -10/Mines (discovered 2 exits: *Mat x2) -9/Materials -9/Mines (discovered 2 exits: [*Mat x2]) History --------- Turn | Location | Event 5 | -11/Scrapyard | Discovered new exit (range 15) 59 | -11/Scrapyard | Entered Materials 309 | -10/Materials | Build established: Mutant 352 | -10/Materials | Discovered new exit (range 8) 553 | -10/Materials | Identified exit to Mines 622 | -10/Materials | Entered Mines 711 | -10/Mines | A weapon hastily lodged in a ceiling crevice suddenly fell to the ground 779 | -10/Mines | Discovered new exit (range 13) 797 | -10/Mines | Received a Mining Laser from a helpful Derelict 894 | -10/Mines | Learned Materials security intel 991 | -10/Mines | Discovered new exit (range 12) 1036 | -10/Mines | Entered Materials 1036 | -9/Materials | Accompanied by 1 ally 1036 | -9/Materials | Evolved 2 slots: Utility x1, Weapon x1 1215 | -9/Materials | Identified exit to Mines 1392 | -9/Materials | Build established: Scavenger-Tank 1440 | -9/Materials | Destroyed 8 combat bots 1472 | -9/Materials | Lost 3 parts (2n1w) 1791 | -9/Materials | Entered Mines 1792 | -9/Mines | Learned location of Storage (-8) 1910 | -9/Mines | Discovered new exit (range 9) 2098 | -9/Mines | Discovered new exit (range 9) 2245 | -9/Mines | Assembled infested the area 2288 | -9/Mines | Core integrity fell below 50% 2296 | -9/Mines | Destroyed 8 combat bots 2387 | -9/Mines | Core integrity fell below 20% 2390 | -9/Mines | Destroyed by D-53 Grenadier with Mini Grenade Launcher Last Messages --------------- 02318_ as-60081 destroyed. 02319_ A derelict is hurriedly installing traps. 02320_ as-07776 destroyed. 02321_ W5-Q5N(g): "Hehe, this'll put a wrench in their mining defense operations..." 02321_ W5-Q5N(g) slips into the shadows. 02324_ Acquired 46 matter. 02364_ Acquired 36 matter. 02367_ The unstable cave ceiling collapses. 02368_ U-05 Engineer lays Concrete. 02369_ U-05 Engineer builds a Wall. 02374_ Rocket Launcher destroyed. 02374_ Lgt. EM Pulse Cannon destroyed. 02376_ Lgt. Assault Rifle destroyed. 02382_ Lgt. Treads destroyed. 02382_ Imp. Ion Engine destroyed. 02384_ The unstable cave ceiling collapses. 02386_ Core Shielding destroyed. 02388_ Lgt. Treads destroyed. 02390_ The unstable cave ceiling collapses. Map ----- +----------------------------------------------------+ | ??###????????????????############ ##??????? | | ?????????????????????# ###???????? | | ?????????????????????# ########## #?????????? | | ??????????????????#### #????????# #?????????? | | ??????????????????# #??##????# #?????????? | | ????????????????### ####?# ##### ?????????? | | ????????????????# # ##??# ????????? | | ???????????????## # ###### ???????? | | ??????????????## # ## ??????? | | ??????????????# ## ## % ### ?????? | | ??????????????# ## #?? #?????? | | ??????????????# # ## ##? ##?????? | | ??????????????## ## # =%* #??????? | | ???????????????# # # ###### | ##??????? | | ???????????????# # ###### ##???????? | | ???????????????## # # ##????????? | | ????????????????# #### #??????????? | | ???????????????## < ###????????? | | ??????????###### d ^ "????????? | | ??????????# ! [[ d ???????? | | ??????????# =* ! ???????? | | ??????????# ### ???????? | | ??????????# #?# ### ???????? | | ?????????## #?# ##?? ????????????? | | ????????## ### ##???????????????? | | ????????# @ #???????????????? | | ???????## ! #???????????????? | | ????#### ### %# ##???????????????? | | ????# #?# |## #????????????????? | | ???# #?###### ##????????????????? | | ???# #??????## ##?????????????????? | | ???##### ##???????## ##??????????????????? | | ???????####?????????######???????????????????? | | ?????????????????????????????????????????????? | | ?????????????????????????????????????????????? | | ?????????????????????????????????????????????? | | ?????????????????????????????????????????????? | | ?????????????????????????????????????????????? | | ?????????????????????????????????????????????? | | | | | | | | | | | | | | | | | | | | | | | +----------------------------------------------------+ Best States ------------- Heat Dissipation 28 Energy Generation 12 Energy Capacity 265 Matter Stores 300 Matter Capacity 300 Sight Range 16 Terrain Scan Range 14 Terrain Scan Density 10 Core Shielding 20 Weapon Shielding 33 Evasion (%) 55 Recoil Reduction 2 Offensive Hacking 10 Item Schematics ----------------- None Robot Schematics ------------------ None Fabricated ------------ Nothing Repaired ---------- Nothing Studied --------- None Alien Tech Used ----------------- None Achievements -------------- None Challenges ------------ None Game ------ Seed GreatCoolingReconfigurator Manual? 0 Play Time 00:31:37 Cumulative 40.2 hours Start 2026.02.02 @ 21:42:01 End 2026.02.02 @ 22:40:53 Sessions 1 Manual Loads 0 Difficulty Rogue Special Mode None Game No. 31 Rogue 31 Adventurer 0 Explorer 0 Win Type - Total 0 Types 0/0/0/0/0/0/0/0/0/0 Lore% 14 Gallery% 28 Achievement% 21 Wizard Run 0 Options --------- Layout 0 ASCII 0 Keyboard 0 Movement Mouse Keybinds 1 Fullscreen 2 Font 24/Smallcaps Map View 76x50 Zoom Use 0% Tactical HUD 1 Map Filters NONE Filters NONE Steam 1 RUN: 67c3e0c6-d34e-4c4f-ba6f-18592ffd15cf